[Event "EYTCC U18 Open 2019"]
[Site "Pardubice"]
[Date "2019.07.15"]
[Round "5.9"]
[White "Gavrilescu, David"]
[Black "Miesbauer, Jan"]
[Result "1/2-1/2"]
[ECO "B31"]
[WhiteElo "2473"]
[BlackElo "2409"]
[Annotator "ChessBase"]
[PlyCount "119"]
[EventDate "2019.07.11"]
[EventType "swiss"]
[EventCountry "CZE"]
[SourceTitle "playchess.com"]
[Source "ChessBase"]
[SourceQuality "1"]
[WhiteTeam "Romania"]
[BlackTeam "Czech Republic"]
[WhiteTeamCountry "ROU"]
[BlackTeamCountry "CZE"]
[TimeControl "40/5400+30:1800+30"]

1. e4 {[%emt 0:00:00]} c5 {[%emt 0:00:00]} 2. Nf3 {[%emt 0:00:26]} Nc6 {[%emt 0:00:02]} 3. Bb5 {[%emt 0:00:48]} g6 {[%emt 0:00:23]} 4. O-O {[%emt 0:01:20]} Bg7 {[%emt 0:00:17]} 5. Nc3 {[%emt 0:00:43]} Nd4 {[%emt 0:03:06]} 6. Ba4 {[%emt 0:01:20]} a6 {[%emt 0:01:19]} 7. d3 {[%emt 0:09:24]} e6 {[%emt 0:01:20]} 8. Nxd4 {[%emt 0:02:30]} cxd4 {[%emt 0:00:07]} 9. Ne2 {[%emt 0:00:48]} Ne7 {[%emt 0:01:03]} 10. Bg5 {[%emt 0:07:05]} h6 {[%emt 0:06:58]} 11. Bh4 {[%emt 0:02:43]} O-O {[%emt 0:03:17]} 12. f4 {[%emt 0:03:57]} d6 {[%emt 0:14:51]} 13. Qd2 {[%emt 0:08:32]} f5 {[%emt 0:12:14]} 14. Bb3 {[%emt 0:05:51]} Kh7 {[%emt 0:02:07]} 15. exf5 {[%emt 0:04:00]} Rxf5 {[%emt 0:07:12]} 16. Rae1 {[%emt 0:05:08]} d5 {[%emt 0:06:25]} 17. Bxe7 {[%emt 0:04:38]} Qxe7 {[%emt 0:00:07]} 18. Ng3 {[%emt 0:00:05]} Rf8 {[%emt 0:07:10]} 19. Bxd5 {[%emt 0:01:08]} Qf7 {[%emt 0:00:53]} 20. Bb3 {[%emt 0:03:42]} Bd7 {[%emt 0:02:39]} 21. Ne4 {[%emt 0:12:03]} Qe7 {[%emt 0:01:23]} 22. Re2 {[%emt 0:05:55]} e5 {[%emt 0:02:18]} 23. Ref2 {[%emt 0:02:55]} exf4 {[%emt 0:03:17]} 24. Rxf4 {[%emt 0:00:08]} Rxf4 {[%emt 0:01:14]} 25. Qxf4 {[%emt 0:05:27]} Rf8 {[%emt 0:01:17]} 26. Qxf8 {[%emt 0:03:26]} Bxf8 {[%emt 0:01:02]} 27. Rf7+ {[%emt 0:00:02]} Qxf7 {[%emt 0:00:16]} 28. Bxf7 {[%emt 0:00:02]} Bc6 {[%emt 0:00:11]} 29. Bd5 {[%emt 0:02:08]} Bxd5 {[%emt 0:01:45]} 30. Nf6+ {[%emt 0:00:03]} Kg7 {[%emt 0:00:07]} 31. Nxd5 {[%emt 0:00:04]} Kf7 {[%emt 0:01:25]} 32. Kf2 {[%emt 0:01:38]} Bd6 {[%emt 0:00:53]} 33. Kf3 {[%emt 0:03:08]} Ke6 {[%emt 0:02:47]} 34. Nf4+ {[%emt 0:01:13]} Kf5 {[%emt 0:00:13]} 35. g3 {[%emt 0:01:33]} g5 {[%emt 0:06:31]} 36. g4+ {[%emt 0:01:51]} Ke5 {[%emt 0:00:52]} 37. Nh5 {[%emt 0:00:49]} b5 {[%emt 0:02:44]} 38. Ng3 {[%emt 0:01:48]} b4 {[%emt 0:01:06]} 39. h3 {[%emt 0:00:26]} Kd5 {[%emt 0:02:43]} 40. Ne4 {[%emt 0:00:32]} Be7 {[%emt 0:00:12]} 41. Nd2 {[%emt 0:03:52]} Bd6 {[%emt 0:01:47]} 42. Nc4 {[%emt 0:02:59]} Bc7 {[%emt 0:00:27]} 43. Ke2 {[%emt 0:00:47]} Kc5 {[%emt 0:01:33]} 44. Kd2 {[%emt 0:02:55]} Bf4+ {[%emt 0:00:29]} 45. Kd1 {[%emt 0:00:07]} Kb5 {[%emt 0:08:15]} 46. c3 {[%emt 0:05:31]} dxc3 {[%emt 0:03:54]} 47. bxc3 {[%emt 0:00:08]} bxc3 {[%emt 0:01:15]} 48. Kc2 {[%emt 0:00:55]} Kc5 {[%emt 0:00:14]} 49. Kxc3 {[%emt 0:00:36]} Kd5 {[%emt 0:00:15]} 50. Nd2 {[%emt 0:01:40]} Bc7 {[%emt 0:01:17]} 51. Nf3 {[%emt 0:00:36]} Bd8 {[%emt 0:01:35]} 52. Kd2 {[%emt 0:00:30]} Bb6 {[%emt 0:00:35]} 53. Ke2 {[%emt 0:01:25]} Bc5 {[%emt 0:00:39]} 54. h4 {[%emt 0:01:41]} gxh4 {[%emt 0:01:34]} 55. Nxh4 {[%emt 0:00:02]} Ke5 {[%emt 0:01:14]} 56. Nf5 {[%emt 0:00:19]} Bf8 {[%emt 0:00:41]} 57. Ke3 {[%emt 0:01:38]} h5 {[%emt 0:00:55]} 58. d4+ {[%emt 0:01:31]} Kf6 {[%emt 0:00:51]} 59. Kf4 {[%emt 0:01:55]} hxg4 {[%emt 0:00:06]} 60. Kxg4 {[%emt 0:00:17] Ke5} 1/2-1/2

[Event "EYTCC U18 Open 2019"]
[Site "Pardubice"]
[Date "2019.07.15"]
[Round "5.11"]
[White "Ileana, George"]
[Black "Svanda, Ondrej"]
[Result "1/2-1/2"]
[ECO "A34"]
[WhiteElo "2344"]
[BlackElo "2234"]
[Annotator "NA"]
[PlyCount "94"]
[EventDate "2019.07.11"]
[EventType "swiss"]
[EventCountry "CZE"]
[SourceTitle "playchess.com"]
[Source "ChessBase"]
[SourceQuality "1"]
[WhiteTeam "Romania"]
[BlackTeam "Czech Republic"]
[WhiteTeamCountry "ROU"]
[BlackTeamCountry "CZE"]
[TimeControl "40/5400+30:1800+30"]

1. c4 {[%emt 0:00:00]} c5 {[%emt 0:00:00]} 2. Nc3 {[%emt 0:00:00]} g6 {[%emt 0:00:42]} 3. e3 {[%emt 0:00:00]} Nf6 {[%emt 0:01:08]} 4. d4 {[%emt 0:01:36]} cxd4 {[%emt 0:05:27]} 5. exd4 {[%emt 0:00:05]} d5 {[%emt 0:02:11]} 6. cxd5 {[%emt 0:02:17]} Nxd5 {[%emt 0:00:52]} 7. Qb3 {[%emt 0:00:21]} Nb6 {[%emt 0:04:26]} 8. Nf3 {[%emt 0:02:24]} Bg7 {[%emt 0:00:11]} 9. Bb5+ {[%emt 0:16:12]} Bd7 {[%emt 0:03:37]} 10. O-O {[%emt 0:01:51]} O-O {[%emt 0:00:04]} 11. Bf4 {[%emt 0:00:52]} Be6 {[%emt 0:05:15]} 12. Qa3 {[%emt 0:01:47]} a6 {[%emt 0:01:06]} 13. Be2 {[%emt 0:00:19]} Nc6 {[%emt 0:04:05]} 14. Rfd1 {[%emt 0:03:13]} Nd5 {[%emt 0:03:27]} 15. Bg3 {[%emt 0:03:26]} Rc8 {[%emt 0:11:39]} 16. Nxd5 {[%emt 0:07:01]} Bxd5 {[%emt 0:02:33]} 17. Ne5 {[%emt 0:00:23]} e6 {[%emt 0:01:25]} 18. Nxc6 {[%emt 0:03:27]} Rxc6 {[%emt 0:00:59]} 19. b4 {[%emt 0:00:16]} Qb6 {[%emt 0:05:06]} 20. b5 {[%emt 0:08:14]} axb5 {[%emt 0:02:35]} 21. Rab1 {[%emt 0:13:44]} Qa6 {[%emt 0:10:22]} 22. Qb4 {[%emt 0:00:17]} Bc4 {[%emt 0:02:33]} 23. Bf3 {[%emt 0:03:59]} Rcc8 {[%emt 0:00:53]} 24. a4 {[%emt 0:02:11]} Qxa4 {[%emt 0:01:08]} 25. Qxa4 {[%emt 0:00:08]} bxa4 {[%emt 0:00:04]} 26. Bxb7 {[%emt 0:00:27]} Rcd8 {[%emt 0:03:50]} 27. Rb4 {[%emt 0:00:09]} Bb3 {[%emt 0:05:07]} 28. Rd3 {[%emt 0:01:02]} Bd5 {[%emt 0:09:24]} 29. Bxd5 {[%emt 0:00:14]} Rxd5 {[%emt 0:00:07]} 30. Rxa4 {[%emt 0:00:07]} e5 {[%emt 0:00:40]} 31. Raa3 {[%emt 0:02:55]} exd4 {[%emt 0:00:14]} 32. Kf1 {[%emt 0:01:11]} Re8 {[%emt 0:00:36]} 33. Bf4 {[%emt 0:01:29]} Rb5 {[%emt 0:02:25]} 34. Ra1 {[%emt 0:00:23]} h6 {[%emt 0:02:17]} 35. h4 {[%emt 0:01:16]} Rc8 {[%emt 0:00:30]} 36. Bd2 {[%emt 0:00:45]} Rb2 {[%emt 0:01:10]} 37. g3 {[%emt 0:02:20]} h5 {[%emt 0:00:50]} 38. Rd1 {[%emt 0:01:01]} Rcc2 {[%emt 0:01:16]} 39. Be1 {[%emt 0:00:28]} Be5 {[%emt 0:01:27]} 40. R1d2 {[%emt 0:00:28]} Rxd2 {[%emt 0:04:01]} 41. Bxd2 {[%emt 0:32:14]} Kf8 {[%emt 0:32:44]} 42. Ke2 {[%emt 0:01:06]} Ke7 {[%emt 0:01:39]} 43. Ra3 {[%emt 0:00:08]} Ke6 {[%emt 0:00:00]} 44. Ra6+ {[%emt 0:00:00]} Kd5 {[%emt 0:00:00]} 45. Ra5+ {[%emt 0:00:00]} Ke6 {[%emt 0:00:00]} 46. Ra6+ {[%emt 0:00:00]} Kd5 {[%emt 0:00:00]} 47. Ra5+ {[%emt 0:00:00]} Ke6 {[%emt 0:00:00]} 1/2-1/2

[Event "EYTCC U18 Open 2019"]
[Site "Pardubice"]
[Date "2019.07.15"]
[Round "5.12"]
[White "Mica, Marek"]
[Black "Ognean, Mihnea-Ionut"]
[Result "0-1"]
[ECO "D37"]
[WhiteElo "2222"]
[BlackElo "2287"]
[Annotator "NA"]
[PlyCount "98"]
[EventDate "2019.07.11"]
[EventType "swiss"]
[EventCountry "CZE"]
[SourceTitle "playchess.com"]
[Source "ChessBase"]
[SourceQuality "1"]
[WhiteTeam "Czech Republic"]
[BlackTeam "Romania"]
[WhiteTeamCountry "CZE"]
[BlackTeamCountry "ROU"]
[TimeControl "40/5400+30:1800+30"]

1. d4 {[%emt 0:00:00]} Nf6 {[%emt 0:00:00]} 2. c4 {[%emt 0:00:00]} e6 {[%emt 0:00:00]} 3. Nf3 {[%emt 0:00:00]} d5 {[%emt 0:00:00]} 4. Nc3 {[%emt 0:00:36]} Nbd7 {[%emt 0:00:01]} 5. Bg5 {[%emt 0:02:49]} c6 {[%emt 0:00:07]} 6. cxd5 {[%emt 0:00:18]} exd5 {[%emt 0:00:04]} 7. e3 {[%emt 0:00:25]} h6 {[%emt 0:00:12]} 8. Bh4 {[%emt 0:00:38]} g5 {[%emt 0:00:10]} 9. Bg3 {[%emt 0:00:30]} Nh5 {[%emt 0:00:04]} 10. Bd3 {[%emt 0:00:51]} Nxg3 {[%emt 0:00:06]} 11. hxg3 {[%emt 0:00:14]} Bg7 {[%emt 0:00:07]} 12. Qc2 {[%emt 0:01:49]} Nb6 {[%emt 0:00:08]} 13. b4 {[%emt 0:15:53]} a6 {[%emt 0:07:31]} 14. a4 {[%emt 0:01:54]} Qe7 {[%emt 0:02:56]} 15. O-O {[%emt 0:07:08]} Be6 {[%emt 0:03:02]} 16. b5 {[%emt 0:04:49]} axb5 {[%emt 0:19:00]} 17. axb5 {[%emt 0:00:24]} Rxa1 {[%emt 0:00:05]} 18. Rxa1 {[%emt 0:00:10]} c5 {[%emt 0:00:05]} 19. Na4 {[%emt 0:15:06]} Nxa4 {[%emt 0:03:24]} 20. Rxa4 {[%emt 0:07:39]} c4 {[%emt 0:02:19]} 21. Ra8+ {[%emt 0:01:27]} Kd7 {[%emt 0:00:20]} 22. Ra7 {[%emt 0:00:11]} Rb8 {[%emt 0:02:43]} 23. Be2 {[%emt 0:01:09]} Ke8 {[%emt 0:14:28]} 24. Qa4 {[%emt 0:09:56]} Kf8 {[%emt 0:14:36]} 25. Ra8 {[%emt 0:02:02]} Qd8 {[%emt 0:00:46]} 26. Rxb8 {[%emt 0:01:33]} Qxb8 {[%emt 0:00:04]} 27. Nd2 {[%emt 0:00:35]} Kg8 {[%emt 0:11:31]} 28. Nb1 {[%emt 0:02:42]} Bf8 {[%emt 0:00:59]} 29. Nc3 {[%emt 0:05:24]} Qd6 {[%emt 0:01:11]} 30. e4 {[%emt 0:09:57]} dxe4 {[%emt 0:00:47]} 31. d5 {[%emt 0:00:47]} Bf5 {[%emt 0:01:48]} 32. Qxc4 {[%emt 0:00:56]} e3 {[%emt 0:00:07]} 33. Ne4 {[%emt 0:06:23]} Qe5 {[%emt 0:03:05]} 34. Bd3 {[%emt 0:00:30]} e2 {[%emt 0:00:24]} 35. Nf6+ {[%emt 0:01:48]} Qxf6 {[%emt 0:00:07]} 36. Bxe2 {[%emt 0:00:06]} Bd6 {[%emt 0:00:21]} 37. Qa2 {[%emt 0:01:10]} Qc3 {[%emt 0:00:27]} 38. Kh2 {[%emt 0:00:32]} Bc5 {[%emt 0:01:02]} 39. Bh5 {[%emt 0:00:30]} Kg7 {[%emt 0:01:28]} 40. d6 {[%emt 0:00:35]} Be6 {[%emt 0:00:27]} 41. Qe2 {[%emt 0:02:24]} Bxd6 {[%emt 0:00:36]} 42. Qe4 {[%emt 0:00:16]} Qc4 {[%emt 0:00:49]} 43. Qe3 {[%emt 0:00:43]} Qxb5 {[%emt 0:00:30]} 44. Be2 {[%emt 0:00:09]} Qc5 {[%emt 0:00:16]} 45. Qf3 {[%emt 0:00:09]} g4 {[%emt 0:01:20]} 46. Qxb7 {[%emt 0:02:29]} Qxf2 {[%emt 0:00:08]} 47. Qb2+ {[%emt 0:00:09]} Kg8 {[%emt 0:01:02]} 48. Qc1 {[%emt 0:00:21]} Qxg3+ {[%emt 0:00:22]} 49. Kh1 {[%emt 0:00:16]} Qh2# {[%emt 0:00:03]} 0-1

[Event "EYTCC U18 Open 2019"]
[Site "Pardubice"]
[Date "2019.07.15"]
[Round "5.13"]
[White "Ozsakallioglu, Okan"]
[Black "Jakab, Bela"]
[Result "1/2-1/2"]
[ECO "D15"]
[WhiteElo "2243"]
[BlackElo "2278"]
[Annotator "ChessBase"]
[PlyCount "69"]
[EventDate "2019.07.11"]
[EventType "swiss"]
[EventCountry "CZE"]
[SourceTitle "playchess.com"]
[Source "ChessBase"]
[SourceQuality "1"]
[WhiteTeam "Turkey"]
[BlackTeam "Slovakia"]
[WhiteTeamCountry "TUR"]
[BlackTeamCountry "SVK"]
[TimeControl "40/5400+30:1800+30"]

1. Nf3 {[%emt 0:00:00]} d5 {[%emt 0:00:00]} 2. d4 {[%emt 0:00:00]} Nf6 {[%emt 0:00:00]} 3. c4 {[%emt 0:00:00]} c6 {[%emt 0:00:15]} 4. Nc3 {[%emt 0:00:27]} a6 {[%emt 0:00:20]} 5. a4 {[%emt 0:00:07]} g6 {[%emt 0:00:41]} 6. Bf4 {[%emt 0:01:40]} Bg7 {[%emt 0:01:06]} 7. a5 {[%emt 0:08:10]} O-O {[%emt 0:05:32]} 8. e3 {[%emt 0:03:33]} Nbd7 {[%emt 0:00:46]} 9. h3 {[%emt 0:07:06]} dxc4 {[%emt 0:07:14]} 10. Bxc4 {[%emt 0:00:07]} b5 {[%emt 0:00:13]} 11. axb6 {[%emt 0:00:50]} Nxb6 {[%emt 0:00:16]} 12. Bd3 {[%emt 0:00:36]} Nbd5 {[%emt 0:01:14]} 13. Bh2 {[%emt 0:00:18]} c5 {[%emt 0:04:28]} 14. O-O {[%emt 0:09:31]} cxd4 {[%emt 0:00:38]} 15. Nxd4 {[%emt 0:00:15]} Re8 {[%emt 0:25:07]} 16. Bb5 {[%emt 0:06:00]} Bd7 {[%emt 0:07:48]} 17. Nxd5 {[%emt 0:00:34]} Bxb5 {[%emt 0:01:08]} 18. Nc7 {[%emt 0:06:37]} Bxf1 {[%emt 0:00:33]} 19. Nxe8 {[%emt 0:00:46]} Nxe8 {[%emt 0:02:07]} 20. Kxf1 {[%emt 0:00:17]} Qb6 {[%emt 0:00:54]} 21. Qe2 {[%emt 0:00:30]} a5 {[%emt 0:04:49]} 22. Qd2 {[%emt 0:01:47]} a4 {[%emt 0:02:43]} 23. Bg3 {[%emt 0:09:33]} Nf6 {[%emt 0:04:28]} 24. Qc2 {[%emt 0:01:09]} Qa6+ {[%emt 0:02:54]} 25. Kg1 {[%emt 0:00:49]} Nd5 {[%emt 0:00:40]} 26. Ra3 {[%emt 0:02:50]} Nb6 {[%emt 0:07:46]} 27. b3 {[%emt 0:02:29]} e5 {[%emt 0:01:07]} 28. Ne2 {[%emt 0:02:57]} Bf8 {[%emt 0:00:41]} 29. Ra1 {[%emt 0:00:41]} axb3 {[%emt 0:12:07]} 30. Rxa6 {[%emt 0:00:06]} bxc2 {[%emt 0:00:04]} 31. Rxb6 {[%emt 0:00:28]} Ra1+ {[%emt 0:00:09]} 32. Kh2 {[%emt 0:00:03]} Re1 {[%emt 0:00:10]} 33. Bxe5 {[%emt 0:01:43]} Rxe2 {[%emt 0:00:05]} 34. Rc6 {[%emt 0:00:18]} f6 {[%emt 0:00:54]} 35. Bb2 {[%emt 0:00:04]} 1/2-1/2

[Event "EYTCC U18 Open 2019"]
[Site "Pardubice"]
[Date "2019.07.15"]
[Round "5.14"]
[White "Bugar, Peter"]
[Black "Ozdemir, Serhan Berat"]
[Result "1/2-1/2"]
[ECO "A16"]
[WhiteElo "2002"]
[BlackElo "1985"]
[Annotator "NA"]
[PlyCount "99"]
[EventDate "2019.07.11"]
[EventType "swiss"]
[EventCountry "CZE"]
[SourceTitle "playchess.com"]
[Source "ChessBase"]
[SourceQuality "1"]
[WhiteTeam "Slovakia"]
[BlackTeam "Turkey"]
[WhiteTeamCountry "SVK"]
[BlackTeamCountry "TUR"]
[TimeControl "40/5400+30:1800+30"]

1. c4 {[%emt 0:00:00]} Nf6 {[%emt 0:00:00]} 2. Nc3 {[%emt 0:00:00]} g6 {[%emt 0:00:00]} 3. g3 {[%emt 0:00:00]} Bg7 {[%emt 0:00:00]} 4. Bg2 {[%emt 0:00:00]} O-O {[%emt 0:00:12]} 5. e4 {[%emt 0:00:05]} d6 {[%emt 0:00:05]} 6. Nge2 {[%emt 0:00:18]} c5 {[%emt 0:00:16]} 7. O-O {[%emt 0:00:08]} Nc6 {[%emt 0:00:18]} 8. d3 {[%emt 0:00:07]} a6 {[%emt 0:00:34]} 9. a4 {[%emt 0:02:00]} Bd7 {[%emt 0:00:27]} 10. h3 {[%emt 0:05:52]} Rb8 {[%emt 0:00:36]} 11. Be3 {[%emt 0:02:51]} Ne8 {[%emt 0:00:23]} 12. Rb1 {[%emt 0:13:13]} Nc7 {[%emt 0:01:39]} 13. d4 {[%emt 0:03:59]} cxd4 {[%emt 0:01:29]} 14. Nxd4 {[%emt 0:00:23]} Nxd4 {[%emt 0:17:12]} 15. Bxd4 {[%emt 0:00:11]} b5 {[%emt 0:02:32]} 16. Bxg7 {[%emt 0:07:03]} Kxg7 {[%emt 0:00:03]} 17. Qd4+ {[%emt 0:00:17]} Kg8 {[%emt 0:00:05]} 18. Rfd1 {[%emt 0:09:18]} b4 {[%emt 0:00:52]} 19. Nd5 {[%emt 0:03:05]} Nxd5 {[%emt 0:02:18]} 20. Qxd5 {[%emt 0:02:03]} Bxa4 {[%emt 0:00:20]} 21. b3 {[%emt 0:00:12]} Bd7 {[%emt 0:02:47]} 22. Ra1 {[%emt 0:07:37]} Qc8 {[%emt 0:04:51]} 23. h4 {[%emt 0:03:30]} Bc6 {[%emt 0:03:16]} 24. Qg5 {[%emt 0:02:56]} Qb7 {[%emt 0:01:20]} 25. Re1 {[%emt 0:02:55]} Ra8 {[%emt 0:14:53]} 26. Ra5 {[%emt 0:04:18]} Qb6 27. Rea1 {[%emt 0:01:08]} Ra7 {[%emt 0:06:57]} 28. h5 {[%emt 0:01:52]} Qd4 {[%emt 0:02:09]} 29. Re1 {[%emt 0:11:37]} Qb6 30. Rea1 {[%emt 0:01:39]} Qd4 {[%emt 0:02:12]} 31. Re1 {[%emt 0:05:23]} Re8 {[%emt 0:04:39]} 32. h6 {[%emt 0:01:11]} Raa8 {[%emt 0:03:22]} 33. Qf4 {[%emt 0:06:00]} Bb7 {[%emt 0:08:08]} 34. g4 {[%emt 0:02:02]} Rac8 {[%emt 0:02:25]} 35. Qg3 {[%emt 0:01:30]} Rc5 {[%emt 0:04:35]} 36. Rxc5 {[%emt 0:00:10]} Qxc5 {[%emt 0:00:06]} 37. e5 {[%emt 0:00:29]} Bxg2 {[%emt 0:01:23]} 38. Kxg2 {[%emt 0:00:02]} d5 {[%emt 0:02:48]} 39. e6 {[%emt 0:02:47]} f6 {[%emt 0:00:36]} 40. Re5 {[%emt 0:00:23]} Qd4 {[%emt 0:04:30]} 41. Rxd5 {[%emt 0:04:10]} Qe4+ {[%emt 0:00:08]} 42. Kh3 {[%emt 0:02:36]} Qxe6 43. Qc7 {[%emt 0:00:49]} Qe4 {[%emt 0:04:08]} 44. Kg3 {[%emt 0:01:17]} Qh1 {[%emt 0:04:11]} 45. Qd7 {[%emt 0:03:27]} Kf8 {[%emt 0:03:05]} 46. c5 {[%emt 0:00:33]} Qg1+ {[%emt 0:05:05]} 47. Kf3 {[%emt 0:00:41]} Qh1+ {[%emt 0:01:37]} 48. Kg3 {[%emt 0:08:36]} Qg1+ {[%emt 0:01:21]} 49. Kf3 {[%emt 0:00:37]} Qh1+ {[%emt 0:08:01]} 50. Kg3 {[%emt 0:00:19]} 1/2-1/2

[Event "EYTCC U18 Open 2019"]
[Site "Pardubice"]
[Date "2019.07.15"]
[Round "5.15"]
[White "Buke, Furkan"]
[Black "Viczencz, Peter"]
[Result "0-1"]
[ECO "B43"]
[WhiteElo "1959"]
[BlackElo "2014"]
[Annotator "NA"]
[PlyCount "130"]
[EventDate "2019.07.11"]
[EventType "swiss"]
[EventCountry "CZE"]
[SourceTitle "playchess.com"]
[Source "ChessBase"]
[SourceQuality "1"]
[WhiteTeam "Turkey"]
[BlackTeam "Slovakia"]
[WhiteTeamCountry "TUR"]
[BlackTeamCountry "SVK"]
[TimeControl "40/5400+30:1800+30"]

1. e4 {[%emt 0:00:00]} e6 {[%emt 0:00:00]} 2. d4 {[%emt 0:00:00]} c5 {[%emt 0:00:00]} 3. Nf3 {[%emt 0:00:00]} cxd4 {[%emt 0:00:00]} 4. Nxd4 {[%emt 0:00:00]} a6 {[%emt 0:00:00]} 5. Nc3 {[%emt 0:00:00]} Qc7 {[%emt 0:00:00]} 6. g3 {[%emt 0:00:00]} Bb4 {[%emt 0:00:31]} 7. Bd2 {[%emt 0:00:15]} Nc6 {[%emt 0:00:11]} 8. Nb3 {[%emt 0:00:10]} Nf6 {[%emt 0:05:54]} 9. Bg2 {[%emt 0:00:10]} O-O {[%emt 0:00:15]} 10. O-O {[%emt 0:00:10]} Be7 {[%emt 0:01:59]} 11. f4 {[%emt 0:00:11]} b5 {[%emt 0:01:42]} 12. e5 {[%emt 0:02:06]} Ne8 {[%emt 0:00:06]} 13. a4 {[%emt 0:06:37]} b4 {[%emt 0:01:33]} 14. Ne4 {[%emt 0:00:07]} d6 {[%emt 0:09:33]} 15. exd6 {[%emt 0:00:58]} Nxd6 {[%emt 0:01:32]} 16. Nxd6 {[%emt 0:01:13]} Bxd6 {[%emt 0:00:25]} 17. Be3 {[%emt 0:02:23]} a5 {[%emt 0:06:39]} 18. Qf3 {[%emt 0:06:39]} Bb7 {[%emt 0:01:22]} 19. Qf2 {[%emt 0:00:24]} Ra6 {[%emt 0:01:52]} 20. Rfd1 {[%emt 0:14:25]} Rc8 {[%emt 0:06:09]} 21. Bf1 {[%emt 0:03:18]} Raa8 {[%emt 0:00:46]} 22. Bb6 {[%emt 0:02:05]} Qe7 {[%emt 0:00:12]} 23. Bc5 {[%emt 0:02:52]} Bxc5 {[%emt 0:04:20]} 24. Nxc5 {[%emt 0:00:26]} Rd8 {[%emt 0:03:26]} 25. Bg2 {[%emt 0:07:35]} Rac8 {[%emt 0:01:06]} 26. Nxb7 {[%emt 0:01:07]} Qxb7 {[%emt 0:00:07]} 27. Kh1 {[%emt 0:03:00]} Qa7 {[%emt 0:02:13]} 28. Qxa7 {[%emt 0:23:09]} Nxa7 {[%emt 0:00:07]} 29. Bf3 {[%emt 0:00:10]} g6 {[%emt 0:00:28]} 30. Rxd8+ {[%emt 0:00:11]} Rxd8 {[%emt 0:00:05]} 31. Rd1 {[%emt 0:00:05]} Rxd1+ {[%emt 0:01:27]} 32. Bxd1 {[%emt 0:00:05]} Kf8 {[%emt 0:00:14]} 33. Kg2 {[%emt 0:00:10]} Ke7 {[%emt 0:00:09]} 34. Kf3 {[%emt 0:00:08]} Kd6 {[%emt 0:00:08]} 35. Ke4 {[%emt 0:00:09]} Nc6 {[%emt 0:00:17]} 36. Bf3 {[%emt 0:00:52]} Kc5 {[%emt 0:02:16]} 37. Kd3 {[%emt 0:00:38]} Ne7 {[%emt 0:01:15]} 38. Be4 {[%emt 0:01:54]} Nc8 {[%emt 0:02:04]} 39. Bb7 {[%emt 0:03:03]} Nb6 {[%emt 0:03:19]} 40. b3 {[%emt 0:00:05]} Nd7 {[%emt 0:00:13]} 41. Ba6 {[%emt 0:31:11]} Nf6 {[%emt 0:30:32]} 42. Bb7 {[%emt 0:08:32]} h6 {[%emt 0:02:05]} 43. Bf3 {[%emt 0:00:48]} g5 {[%emt 0:02:44]} 44. fxg5 {[%emt 0:01:07]} hxg5 {[%emt 0:00:05]} 45. h4 {[%emt 0:00:19]} gxh4 {[%emt 0:00:07]} 46. gxh4 {[%emt 0:00:02]} Ng8 {[%emt 0:00:24]} 47. Ke4 {[%emt 0:01:51]} f6 {[%emt 0:00:20]} 48. Bg2 {[%emt 0:00:58]} Nh6 {[%emt 0:00:45]} 49. Bh3 {[%emt 0:00:17]} Kd6 {[%emt 0:02:58]} 50. h5 {[%emt 0:02:27]} Nf7 {[%emt 0:01:51]} 51. Bg2 {[%emt 0:03:39]} f5+ {[%emt 0:00:29]} 52. Kf4 {[%emt 0:00:41]} Ke7 {[%emt 0:00:10]} 53. Kg3 {[%emt 0:02:37]} Kf6 {[%emt 0:00:37]} 54. Kh4 {[%emt 0:00:10]} e5 {[%emt 0:00:49]} 55. Bd5 {[%emt 0:00:19]} Nh6 {[%emt 0:00:13]} 56. Bb7 {[%emt 0:00:49]} e4 {[%emt 0:00:33]} 57. Bc6 {[%emt 0:00:37]} e3 {[%emt 0:00:24]} 58. Bf3 {[%emt 0:00:34]} Nf7 {[%emt 0:00:28]} 59. Be2 {[%emt 0:00:36]} Ne5 {[%emt 0:01:34]} 60. h6 {[%emt 0:03:21]} f4 {[%emt 0:00:48]} 61. Bh5 {[%emt 0:01:32]} Nc6 {[%emt 0:03:13]} 62. Kh3 {[%emt 0:00:00]} Nd4 {[%emt 0:00:00]} 63. Kg2 {[%emt 0:00:00]} Nxc2 {[%emt 0:00:00]} 64. h7 {[%emt 0:00:00]} Kg7 {[%emt 0:00:00]} 65. Bg6 {[%emt 0:00:00]} e2 {[%emt 0:00:00]} 0-1